[Event "Titled Tuesday Blitz August 08 Early 2023"]
[White "Baghdasaryan, Vahe"]
[Black "Thorsteinsdottir, Hallgerdur"]
[WhiteFideId "13303139"]
[BlackFideId "2302454"]
[WhiteElo "2550"]
[BlackElo "2105"]
[Result "0-1"]
[Round "1"]
[TimeControl "180+1"]
[Date "2023.08.08"]
[WhiteClock "0:00:00"]
[BlackClock "0:00:05"]
[Board "252"]

1. e4 {[%clk 0:02:59]}  d5 {[%clk 0:02:59]} 2. exd5 {[%clk 0:02:58]}  Qxd5 {[%clk 0:02:59]} 3. Nc3 {[%clk 0:02:59]}  Qd8 {[%clk 0:02:58]} 4. d4 {[%clk 0:02:59]}  Nf6 {[%clk 0:02:56]} 5. Nf3 {[%clk 0:02:58]}  Bg4 {[%clk 0:02:54]} 6. Be2 {[%clk 0:02:57]}  e6 {[%clk 0:02:54]} 7. h3 {[%clk 0:02:56]}  Bh5 {[%clk 0:02:53]} 8. Be3 {[%clk 0:02:52]}  c6 {[%clk 0:02:41]} 9. g4 {[%clk 0:02:52]}  Bg6 {[%clk 0:02:41]} 10. Ne5 {[%clk 0:02:52]}  Nbd7 {[%clk 0:02:40]} 11. Nxg6 {[%clk 0:02:43]}  hxg6 {[%clk 0:02:40]} 12. Bf3 {[%clk 0:02:41]}  Nd5 {[%clk 0:02:36]} 13. Nxd5 {[%clk 0:02:37]}  cxd5 {[%clk 0:02:36]} 14. c3 {[%clk 0:02:37]}  Bd6 {[%clk 0:02:30]} 15. a4 {[%clk 0:02:27]}  Qc7 {[%clk 0:02:29]} 16. a5 {[%clk 0:02:22]}  Bf4 {[%clk 0:02:18]} 17. Qd2 {[%clk 0:02:17]}  g5 {[%clk 0:02:05]} 18. Bxf4 {[%clk 0:02:09]}  Qxf4 {[%clk 0:02:04]} 19. Qxf4 {[%clk 0:02:08]}  gxf4 {[%clk 0:02:04]} 20. Kd2 {[%clk 0:02:07]}  g5 {[%clk 0:01:58]} 21. b4 {[%clk 0:02:00]}  a6 {[%clk 0:01:46]} 22. Rh2 {[%clk 0:01:49]}  O-O-O {[%clk 0:01:41]} 23. Rah1 {[%clk 0:01:44]}  Rh4 {[%clk 0:01:41]} 24. Be2 {[%clk 0:01:40]}  Rdh8 {[%clk 0:01:32]} 25. f3 {[%clk 0:01:38]}  Rf8 {[%clk 0:01:27]} 26. b5 {[%clk 0:01:31]}  axb5 {[%clk 0:01:25]} 27. Bxb5 {[%clk 0:01:32]}  Nb8 {[%clk 0:01:15]} 28. Rb1 {[%clk 0:00:53]}  Rfh8 {[%clk 0:01:12]} 29. Bf1 {[%clk 0:00:51]}  Nc6 {[%clk 0:01:09]} 30. a6 {[%clk 0:00:47]}  bxa6 {[%clk 0:01:08]} 31. Bxa6+ {[%clk 0:00:45]}  Kd8 {[%clk 0:00:51]} 32. Bf1 {[%clk 0:00:34]}  Kc7 {[%clk 0:00:46]} 33. Ra1 {[%clk 0:00:22]}  Rb8 {[%clk 0:00:44]} 34. Kd3 {[%clk 0:00:20]}  Rb3 {[%clk 0:00:43]} 35. Rha2 {[%clk 0:00:19]}  Rh8 {[%clk 0:00:34]} 36. Kd2 {[%clk 0:00:18]}  Rhb8 {[%clk 0:00:33]} 37. Rc2 {[%clk 0:00:19]}  Rb2 {[%clk 0:00:32]} 38. Bd3 {[%clk 0:00:14]}  f6 {[%clk 0:00:21]} 39. Bf1 {[%clk 0:00:13]}  e5 {[%clk 0:00:17]} 40. dxe5 {[%clk 0:00:11]}  fxe5 {[%clk 0:00:18]} 41. Re1 {[%clk 0:00:10]}  Kd6 {[%clk 0:00:17]} 42. Bd3 {[%clk 0:00:09]}  R8b3 {[%clk 0:00:13]} 43. Bf5 {[%clk 0:00:07]}  d4 {[%clk 0:00:11]} 44. cxd4 {[%clk 0:00:07]}  Nxd4 {[%clk 0:00:11]} 45. Rxb2 {[%clk 0:00:06]}  Rxb2+ {[%clk 0:00:12]} 46. Kc3 {[%clk 0:00:07]}  Rf2 {[%clk 0:00:10]} 47. Be4 {[%clk 0:00:06]}  Nxf3 {[%clk 0:00:10]} 48. Rd1+ {[%clk 0:00:06]}  Nd4 {[%clk 0:00:10]} 49. Rh1 {[%clk 0:00:04]}  Re2 {[%clk 0:00:11]} 50. Bd3 {[%clk 0:00:04]}  Re3 {[%clk 0:00:11]} 51. h4 {[%clk 0:00:04]}  Kd5 {[%clk 0:00:10]} 52. Rg1 {[%clk 0:00:05]}  e4 {[%clk 0:00:10]} 53. hxg5 {[%clk 0:00:03]}  Rxd3+ {[%clk 0:00:10]} 54. Kb2 {[%clk 0:00:03]}  Nf3 {[%clk 0:00:11]} 55. g6 {[%clk 0:00:04]}  Rd2+ {[%clk 0:00:09]} 56. Kc1 {[%clk 0:00:02]}  Ke6 {[%clk 0:00:06]} 57. Rf1 {[%clk 0:00:00]}  Rd8 {[%clk 0:00:05]} 0-1


[Site "https://www.chess.com"]

[Event "Titled Tuesday Blitz August 08 Early 2023"]
[White "Lakshmi C"]
[Black "Shvedova, Alexandra"]
[WhiteFideId "25035347"]
[BlackFideId "54154782"]
[WhiteElo "2088"]
[BlackElo "2548"]
[Result "0-1"]
[Round "1"]
[TimeControl "180+1"]
[Date "2023.08.08"]
[WhiteClock "0:00:00"]
[BlackClock "0:00:38"]
[Board "255"]

1. e4 {[%clk 0:02:52]}  e5 {[%clk 0:03:00]} 2. Nf3 {[%clk 0:02:49]}  Nc6 {[%clk 0:03:00]} 3. Bb5 {[%clk 0:02:47]}  Nf6 {[%clk 0:02:59]} 4. O-O {[%clk 0:02:47]}  Nxe4 {[%clk 0:02:57]} 5. Re1 {[%clk 0:02:46]}  Nd6 {[%clk 0:02:56]} 6. Nxe5 {[%clk 0:02:44]}  Be7 {[%clk 0:02:52]} 7. Bf1 {[%clk 0:02:39]}  O-O {[%clk 0:02:51]} 8. d4 {[%clk 0:02:39]}  Bf6 {[%clk 0:02:42]} 9. c4 {[%clk 0:02:35]}  Re8 {[%clk 0:02:38]} 10. Bf4 {[%clk 0:02:35]}  Nf5 {[%clk 0:02:32]} 11. Nxc6 {[%clk 0:00:58]}  dxc6 {[%clk 0:02:33]} 12. Rxe8+ {[%clk 0:00:57]}  Qxe8 {[%clk 0:02:33]} 13. Bxc7 {[%clk 0:00:44]}  Nxd4 {[%clk 0:02:27]} 14. Nc3 {[%clk 0:00:42]}  Bf5 {[%clk 0:02:22]} 15. Bd3 {[%clk 0:00:32]}  Qd7 {[%clk 0:02:05]} 16. Bxf5 {[%clk 0:00:31]}  Qxc7 {[%clk 0:02:01]} 17. Be4 {[%clk 0:00:24]}  Re8 {[%clk 0:01:59]} 18. Qh5 {[%clk 0:00:21]}  g6 {[%clk 0:01:59]} 19. Qg4 {[%clk 0:00:18]}  h5 {[%clk 0:01:46]} 20. Qh3 {[%clk 0:00:17]}  Qf4 {[%clk 0:01:43]} 21. Qd3 {[%clk 0:00:15]}  Be5 {[%clk 0:01:33]} 22. g3 {[%clk 0:00:15]}  Qf6 {[%clk 0:01:33]} 23. Bg2 {[%clk 0:00:13]}  h4 {[%clk 0:01:29]} 24. Ne4 {[%clk 0:00:13]}  Qg7 {[%clk 0:01:29]} 25. f4 {[%clk 0:00:12]}  Bc7 {[%clk 0:01:29]} 26. Rd1 {[%clk 0:00:07]}  Ne6 {[%clk 0:01:20]} 27. Qf1 {[%clk 0:00:05]}  f5 {[%clk 0:01:00]} 28. Nc3 {[%clk 0:00:03]}  Bb6+ {[%clk 0:00:56]} 29. Kh1 {[%clk 0:00:03]}  Nd4 {[%clk 0:00:54]} 30. Qd3 {[%clk 0:00:03]}  Qe7 {[%clk 0:00:50]} 31. Qf1 {[%clk 0:00:03]}  Qe3 {[%clk 0:00:44]} 32. a3 {[%clk 0:00:03]}  hxg3 {[%clk 0:00:44]} 33. hxg3 {[%clk 0:00:04]}  Qxg3 {[%clk 0:00:44]} 34. Rd3 {[%clk 0:00:04]}  Qh4+ {[%clk 0:00:39]} 35. Rh3 {[%clk 0:00:04]}  Qe1 {[%clk 0:00:40]} 36. Kh2 {[%clk 0:00:01]}  Qxf1 {[%clk 0:00:38]} 37. Bxf1 {[%clk 0:00:02]}  Ne6 {[%clk 0:00:38]} 38. Rf3 {[%clk 0:00:00]}  Nxf4 {[%clk 0:00:38]} 0-1


[Site "https://www.chess.com"]

[Event "Titled Tuesday Blitz August 08 Early 2023"]
[White "Seifert, Henryk"]
[Black "Mendez Fortes, Eduardo Jesus"]
[WhiteFideId "1100963"]
[BlackFideId "3502376"]
[WhiteElo "2074"]
[BlackElo "2546"]
[Result "0-1"]
[Round "1"]
[TimeControl "180+1"]
[Date "2023.08.08"]
[WhiteClock "0:00:00"]
[BlackClock "0:00:15"]
[Board "257"]

1. e4 {[%clk 0:03:00]}  c5 {[%clk 0:02:36]} 2. Nf3 {[%clk 0:02:58]}  d6 {[%clk 0:02:35]} 3. d4 {[%clk 0:02:55]}  cxd4 {[%clk 0:02:36]} 4. Qxd4 {[%clk 0:02:55]}  Nc6 {[%clk 0:02:33]} 5. Bb5 {[%clk 0:02:55]}  Bd7 {[%clk 0:02:31]} 6. Bxc6 {[%clk 0:02:54]}  Bxc6 {[%clk 0:02:32]} 7. Nc3 {[%clk 0:02:54]}  Nf6 {[%clk 0:02:32]} 8. Bg5 {[%clk 0:02:45]}  e6 {[%clk 0:02:31]} 9. O-O-O {[%clk 0:02:41]}  Be7 {[%clk 0:02:31]} 10. e5 {[%clk 0:02:30]}  dxe5 {[%clk 0:02:30]} 11. Qxe5 {[%clk 0:02:18]}  Qb6 {[%clk 0:02:10]} 12. Be3 {[%clk 0:02:05]}  Qa6 {[%clk 0:02:08]} 13. Bc5 {[%clk 0:01:34]}  Nd7 {[%clk 0:01:26]} 14. Rxd7 {[%clk 0:01:27]}  Kxd7 {[%clk 0:01:07]} 15. Rd1+ {[%clk 0:01:19]}  Ke8 {[%clk 0:01:06]} 16. Qxg7 {[%clk 0:01:02]}  Rf8 {[%clk 0:01:00]} 17. Bxe7 {[%clk 0:00:58]}  Kxe7 {[%clk 0:00:58]} 18. Ne5 {[%clk 0:00:28]}  Qa5 {[%clk 0:00:42]} 19. Qg5+ {[%clk 0:00:22]}  Ke8 {[%clk 0:00:40]} 20. Qf6 {[%clk 0:00:19]}  Rd8 {[%clk 0:00:31]} 21. Re1 {[%clk 0:00:17]}  Qc7 {[%clk 0:00:20]} 22. Ng4 {[%clk 0:00:11]}  Qe7 {[%clk 0:00:16]} 23. Qg7 {[%clk 0:00:11]}  f5 {[%clk 0:00:16]} 24. Qxe7+ {[%clk 0:00:04]}  Kxe7 {[%clk 0:00:17]} 25. Ne5 {[%clk 0:00:04]}  Rg8 {[%clk 0:00:17]} 26. g3 {[%clk 0:00:03]}  Rd6 {[%clk 0:00:16]} 27. f4 {[%clk 0:00:03]}  Rgd8 {[%clk 0:00:15]} 28. b4 {[%clk 0:00:00]}  Bf3 {[%clk 0:00:15]} 0-1


[Site "https://www.chess.com"]

[Event "Titled Tuesday Blitz August 08 Early 2023"]
[White "Kuzmin, Roman"]
[Black "Kriti Mayur Patel"]
[WhiteFideId "44134932"]
[BlackFideId "35061780"]
[WhiteElo "2545"]
[BlackElo "2074"]
[Result "1-0"]
[Round "1"]
[TimeControl "180+1"]
[Date "2023.08.08"]
[WhiteClock "0:00:05"]
[BlackClock "0:00:08"]
[Board "258"]

1. e4 {[%clk 0:03:00]}  e5 {[%clk 0:02:55]} 2. Nf3 {[%clk 0:03:00]}  Nc6 {[%clk 0:02:55]} 3. Bb5 {[%clk 0:02:59]}  a6 {[%clk 0:02:55]} 4. Ba4 {[%clk 0:02:59]}  Nf6 {[%clk 0:02:54]} 5. O-O {[%clk 0:02:59]}  b5 {[%clk 0:02:54]} 6. Bb3 {[%clk 0:02:59]}  Bc5 {[%clk 0:02:55]} 7. c3 {[%clk 0:02:58]}  d6 {[%clk 0:02:54]} 8. d4 {[%clk 0:02:58]}  Bb6 {[%clk 0:02:55]} 9. h3 {[%clk 0:02:55]}  h6 {[%clk 0:02:54]} 10. Be3 {[%clk 0:02:55]}  O-O {[%clk 0:02:52]} 11. Nbd2 {[%clk 0:02:55]}  Re8 {[%clk 0:02:49]} 12. Re1 {[%clk 0:02:56]}  Bb7 {[%clk 0:02:49]} 13. d5 {[%clk 0:02:50]}  Ne7 {[%clk 0:02:49]} 14. Bxb6 {[%clk 0:02:50]}  cxb6 {[%clk 0:02:48]} 15. c4 {[%clk 0:02:50]}  bxc4 {[%clk 0:02:45]} 16. Nxc4 {[%clk 0:02:51]}  b5 {[%clk 0:02:45]} 17. Ne3 {[%clk 0:02:51]}  Ng6 {[%clk 0:02:45]} 18. Nf5 {[%clk 0:02:47]}  Bc8 {[%clk 0:02:44]} 19. Ng3 {[%clk 0:02:29]}  Nf4 {[%clk 0:02:43]} 20. a4 {[%clk 0:02:12]}  Rb8 {[%clk 0:02:41]} 21. axb5 {[%clk 0:02:11]}  axb5 {[%clk 0:02:40]} 22. Ra7 {[%clk 0:02:08]}  Qb6 {[%clk 0:02:36]} 23. Ra3 {[%clk 0:01:55]}  Bxh3 {[%clk 0:02:13]} 24. gxh3 {[%clk 0:01:49]}  Nxh3+ {[%clk 0:02:14]} 25. Kg2 {[%clk 0:01:49]}  Nxf2 {[%clk 0:02:13]} 26. Qe2 {[%clk 0:01:42]}  N2g4 {[%clk 0:02:03]} 27. Nf5 {[%clk 0:01:18]}  Rbc8 {[%clk 0:01:35]} 28. Nh2 {[%clk 0:01:05]}  h5 {[%clk 0:01:26]} 29. Bd1 {[%clk 0:00:58]}  g6 {[%clk 0:01:23]} 30. Nxg4 {[%clk 0:00:52]}  Nxg4 {[%clk 0:01:21]} 31. Ne3 {[%clk 0:00:52]}  Nf6 {[%clk 0:01:10]} 32. Nf1 {[%clk 0:00:48]}  Rc4 {[%clk 0:01:02]} 33. Re3 {[%clk 0:00:48]}  Rec8 {[%clk 0:00:58]} 34. Qf2 {[%clk 0:00:43]}  Kg7 {[%clk 0:00:53]} 35. Ng3 {[%clk 0:00:33]}  Qd4 {[%clk 0:00:48]} 36. Rf1 {[%clk 0:00:23]}  Ng4 {[%clk 0:00:26]} 37. Bxg4 {[%clk 0:00:22]}  hxg4 {[%clk 0:00:19]} 38. Qxf7+ {[%clk 0:00:22]}  Kh6 {[%clk 0:00:17]} 39. Re2 {[%clk 0:00:08]}  Rc2 {[%clk 0:00:16]} 40. Ref2 {[%clk 0:00:02]}  Rxf2+ {[%clk 0:00:15]} 41. Rxf2 {[%clk 0:00:03]}  Qe3 {[%clk 0:00:13]} 42. Qf6 {[%clk 0:00:03]}  Qg5 {[%clk 0:00:11]} 43. Nf5+ {[%clk 0:00:02]}  Kh5 {[%clk 0:00:09]} 44. Qxg5+ {[%clk 0:00:03]}  Kxg5 {[%clk 0:00:10]} 45. Nxd6 {[%clk 0:00:04]}  Rd8 {[%clk 0:00:08]} 46. Nf7+ {[%clk 0:00:04]}  Kh4 {[%clk 0:00:07]} 47. Nxd8 {[%clk 0:00:05]}  b4 {[%clk 0:00:07]} 48. Rf8 {[%clk 0:00:05]}  g3 {[%clk 0:00:08]} 49. Nf7 {[%clk 0:00:05]}  g5 {[%clk 0:00:07]} 50. Nxe5 {[%clk 0:00:05]}  b3 {[%clk 0:00:08]} 51. Rh8# {[%clk 0:00:05]} 1-0


[Site "https://www.chess.com"]

[Event "Titled Tuesday Blitz August 08 Early 2023"]
[White "Maluco_do_Natal_00"]
[Black "LeoLV10"]
[WhiteElo "2068"]
[BlackElo "2542"]
[Result "0-1"]
[Round "1"]
[TimeControl "180+1"]
[Date "2023.08.08"]
[WhiteClock "0:00:00"]
[BlackClock "0:01:05"]
[Board "259"]

1. e4 {[%clk 0:02:53]}  c5 {[%clk 0:02:57]} 2. Nf3 {[%clk 0:02:52]}  e6 {[%clk 0:02:56]} 3. d4 {[%clk 0:02:36]}  cxd4 {[%clk 0:02:57]} 4. Nxd4 {[%clk 0:02:37]}  a6 {[%clk 0:02:57]} 5. c4 {[%clk 0:02:32]}  Nf6 {[%clk 0:02:57]} 6. Nc3 {[%clk 0:02:32]}  Qc7 {[%clk 0:02:55]} 7. Bd3 {[%clk 0:02:25]}  b6 {[%clk 0:02:55]} 8. O-O {[%clk 0:02:22]}  Bb7 {[%clk 0:02:53]} 9. Qe2 {[%clk 0:02:04]}  Nc6 {[%clk 0:02:44]} 10. Be3 {[%clk 0:02:02]}  Ne5 {[%clk 0:02:41]} 11. h3 {[%clk 0:01:50]}  Bb4 {[%clk 0:02:35]} 12. Rac1 {[%clk 0:01:36]}  Nxd3 {[%clk 0:02:26]} 13. Qxd3 {[%clk 0:01:36]}  O-O {[%clk 0:02:26]} 14. f3 {[%clk 0:01:31]}  Rad8 {[%clk 0:02:20]} 15. a3 {[%clk 0:01:29]}  Be7 {[%clk 0:02:20]} 16. Qd2 {[%clk 0:01:23]}  d6 {[%clk 0:02:19]} 17. Rcd1 {[%clk 0:01:13]}  Rfe8 {[%clk 0:02:18]} 18. Qe2 {[%clk 0:01:10]}  Rc8 {[%clk 0:02:18]} 19. b3 {[%clk 0:01:10]}  b5 {[%clk 0:02:09]} 20. Ncxb5 {[%clk 0:00:31]}  axb5 {[%clk 0:02:08]} 21. Nxb5 {[%clk 0:00:32]}  Qd7 {[%clk 0:02:03]} 22. e5 {[%clk 0:00:31]}  Nh5 {[%clk 0:02:01]} 23. exd6 {[%clk 0:00:30]}  Bf6 {[%clk 0:01:52]} 24. Qf2 {[%clk 0:00:26]}  g6 {[%clk 0:01:45]} 25. g4 {[%clk 0:00:14]}  Ng7 {[%clk 0:01:40]} 26. Nc7 {[%clk 0:00:14]}  Rf8 {[%clk 0:01:37]} 27. Bh6 {[%clk 0:00:12]}  Bd8 {[%clk 0:01:37]} 28. Nb5 {[%clk 0:00:12]}  Qc6 {[%clk 0:01:18]} 29. Kg2 {[%clk 0:00:10]}  Bb6 {[%clk 0:01:16]} 30. Be3 {[%clk 0:00:09]}  Bxe3 {[%clk 0:01:16]} 31. Qxe3 {[%clk 0:00:10]}  Ra8 {[%clk 0:01:10]} 32. a4 {[%clk 0:00:09]}  Qd7 {[%clk 0:01:09]} 33. c5 {[%clk 0:00:08]}  Bc6 {[%clk 0:01:09]} 34. Nc3 {[%clk 0:00:07]}  Rab8 {[%clk 0:01:09]} 35. Rb1 {[%clk 0:00:07]}  Rb4 {[%clk 0:01:09]} 36. Ne4 {[%clk 0:00:05]}  Bxe4 {[%clk 0:01:07]} 37. fxe4 {[%clk 0:00:06]}  Qc6 {[%clk 0:01:07]} 38. Kf3 {[%clk 0:00:04]}  f5 {[%clk 0:01:05]} 39. gxf5 {[%clk 0:00:00]}  Nxf5 {[%clk 0:01:05]} 0-1


[Site "https://www.chess.com"]

[Event "Titled Tuesday Blitz August 08 Early 2023"]
[White "Dobrikov, Marco"]
[Black "Mangialardo, Tiago Carvalho"]
[WhiteFideId "12950378"]
[BlackFideId "2130718"]
[WhiteElo "2540"]
[BlackElo "2068"]
[Result "1-0"]
[Round "1"]
[TimeControl "180+1"]
[Date "2023.08.08"]
[WhiteClock "0:01:21"]
[BlackClock "0:00:00"]
[Board "260"]

1. d4 {[%clk 0:02:59]}  Nf6 {[%clk 0:03:00]} 2. Bf4 {[%clk 0:02:58]}  c5 {[%clk 0:03:01]} 3. e3 {[%clk 0:02:59]}  g6 {[%clk 0:03:01]} 4. c3 {[%clk 0:02:59]}  Bg7 {[%clk 0:03:01]} 5. Nd2 {[%clk 0:03:00]}  O-O {[%clk 0:03:01]} 6. Bd3 {[%clk 0:03:00]}  d6 {[%clk 0:03:02]} 7. Ngf3 {[%clk 0:03:01]}  Nc6 {[%clk 0:03:02]} 8. h3 {[%clk 0:03:01]}  Re8 {[%clk 0:03:03]} 9. Bh2 {[%clk 0:03:02]}  e5 {[%clk 0:03:03]} 10. dxe5 {[%clk 0:02:52]}  dxe5 {[%clk 0:03:04]} 11. Qc2 {[%clk 0:02:53]}  Qe7 {[%clk 0:02:53]} 12. Ne4 {[%clk 0:02:51]}  Nd5 {[%clk 0:02:44]} 13. Bb5 {[%clk 0:02:45]}  f5 {[%clk 0:02:21]} 14. Ned2 {[%clk 0:02:39]}  e4 {[%clk 0:02:11]} 15. Ng1 {[%clk 0:02:39]}  f4 {[%clk 0:02:00]} 16. Bc4 {[%clk 0:02:38]}  Be6 {[%clk 0:01:53]} 17. Bxd5 {[%clk 0:02:34]}  Bxd5 {[%clk 0:01:51]} 18. Bxf4 {[%clk 0:02:35]}  Ne5 {[%clk 0:01:42]} 19. Bxe5 {[%clk 0:02:34]}  Bxe5 {[%clk 0:01:43]} 20. Ne2 {[%clk 0:02:34]}  Qg5 {[%clk 0:01:36]} 21. g3 {[%clk 0:02:30]}  Bc7 {[%clk 0:01:27]} 22. Nf4 {[%clk 0:02:10]}  Bxf4 {[%clk 0:01:21]} 23. gxf4 {[%clk 0:02:11]}  Qh5 {[%clk 0:01:19]} 24. c4 {[%clk 0:02:06]}  Bc6 {[%clk 0:01:13]} 25. Qd1 {[%clk 0:02:03]}  Qh4 {[%clk 0:01:00]} 26. Qe2 {[%clk 0:02:02]}  Rad8 {[%clk 0:00:45]} 27. O-O-O {[%clk 0:02:02]}  Qf6 {[%clk 0:00:38]} 28. Nb1 {[%clk 0:01:56]}  b5 {[%clk 0:00:34]} 29. cxb5 {[%clk 0:01:52]}  Bd5 {[%clk 0:00:34]} 30. Nc3 {[%clk 0:01:52]}  Bf7 {[%clk 0:00:32]} 31. Rxd8 {[%clk 0:01:48]}  Rxd8 {[%clk 0:00:32]} 32. Rd1 {[%clk 0:01:46]}  Rb8 {[%clk 0:00:32]} 33. Nxe4 {[%clk 0:01:44]}  Qe6 {[%clk 0:00:29]} 34. Nc3 {[%clk 0:01:43]}  Qxh3 {[%clk 0:00:27]} 35. Qd3 {[%clk 0:01:37]}  Qf3 {[%clk 0:00:19]} 36. Qd6 {[%clk 0:01:35]}  Re8 {[%clk 0:00:16]} 37. Qxc5 {[%clk 0:01:34]}  Qxf2 {[%clk 0:00:16]} 38. Qxa7 {[%clk 0:01:26]}  Rxe3 {[%clk 0:00:15]} 39. Rd8+ {[%clk 0:01:23]}  Kg7 {[%clk 0:00:14]} 40. Qd4+ {[%clk 0:01:23]}  Kh6 {[%clk 0:00:00]} 41. Nd1 {[%clk 0:01:21]} 1-0


[Site "https://www.chess.com"]

[Event "Titled Tuesday Blitz August 08 Early 2023"]
[White "Chincholimath, Halsagar"]
[Black "Bettalli, Francesco"]
[WhiteFideId "5022487"]
[BlackFideId "2816453"]
[WhiteElo "2065"]
[BlackElo "2537"]
[Result "0-1"]
[Round "1"]
[TimeControl "180+1"]
[Date "2023.08.08"]
[WhiteClock "0:00:19"]
[BlackClock "0:00:55"]
[Board "261"]

1. e4 {[%clk 0:03:00]}  e5 {[%clk 0:02:53]} 2. Nf3 {[%clk 0:02:58]}  Nf6 {[%clk 0:02:54]} 3. Nxe5 {[%clk 0:02:52]}  Nc6 {[%clk 0:02:53]} 4. d4 {[%clk 0:02:49]}  Nxe5 {[%clk 0:02:52]} 5. dxe5 {[%clk 0:02:47]}  Nxe4 {[%clk 0:02:53]} 6. Bd3 {[%clk 0:02:45]}  Nc5 {[%clk 0:02:53]} 7. Bc4 {[%clk 0:02:42]}  Ne6 {[%clk 0:02:53]} 8. O-O {[%clk 0:02:41]}  Be7 {[%clk 0:02:52]} 9. f4 {[%clk 0:02:40]}  c6 {[%clk 0:02:28]} 10. f5 {[%clk 0:02:38]}  Qb6+ {[%clk 0:02:29]} 11. Kh1 {[%clk 0:02:35]}  Nd4 {[%clk 0:02:25]} 12. f6 {[%clk 0:02:17]}  gxf6 {[%clk 0:02:22]} 13. exf6 {[%clk 0:02:15]}  Bc5 {[%clk 0:02:19]} 14. Nc3 {[%clk 0:02:07]}  d5 {[%clk 0:02:10]} 15. Bxd5 {[%clk 0:02:07]}  cxd5 {[%clk 0:02:09]} 16. Nxd5 {[%clk 0:02:07]}  Qc6 {[%clk 0:01:57]} 17. Qh5 {[%clk 0:01:58]}  Be6 {[%clk 0:01:55]} 18. Ne7 {[%clk 0:01:38]}  Bxe7 {[%clk 0:01:50]} 19. fxe7 {[%clk 0:01:37]}  Rg8 {[%clk 0:01:44]} 20. Bg5 {[%clk 0:01:23]}  Qd5 {[%clk 0:01:22]} 21. h4 {[%clk 0:01:14]}  Nf5 {[%clk 0:01:22]} 22. Qg4 {[%clk 0:01:00]}  Ne3 {[%clk 0:01:11]} 23. Qg3 {[%clk 0:00:53]}  Nxf1 {[%clk 0:01:08]} 24. Rxf1 {[%clk 0:00:54]}  h6 {[%clk 0:01:07]} 25. c4 {[%clk 0:00:23]}  Qxc4 {[%clk 0:00:56]} 26. Rc1 {[%clk 0:00:22]}  Qxc1+ {[%clk 0:00:55]} 27. Bxc1 {[%clk 0:00:19]}  Rxg3 {[%clk 0:00:55]} 0-1


[Site "https://www.chess.com"]